[Event "Czech Championship U20 Open 2023"]
[Site "Jaromerice nad Rokytnou"]
[Date "2023.03.16"]
[Round "9.5"]
[White "Gnojek, Petr"]
[Black "Jares, Michal"]
[Result "1/2-1/2"]
[ECO "E71"]
[WhiteElo "2313"]
[BlackElo "2177"]
[Annotator "TA"]
[PlyCount "183"]
[EventDate "2023.03.10"]
[EventType "tourn"]
[EventCountry "CZE"]
[SourceTitle "playchess.com"]
[Source "ChessBase"]
[SourceQuality "1"]
[TimeControl "40/5400+30:1800+30"]

{[%evp 11,183,32,35,26,41,33,73,36,83,45,100,84,87,92,75,93,88,-7,0,-207,-204,-190,-184,-204,-194,-208,-185,-147,-148,-169,-123,-144,-134,-190,-102,-106,-99,-106,-8,-8,0,0,0,0,35,12,27,35,26,22,33,37,33,29,18,47,54,71,179,122,270,279,263,272,310,109,370,153,337,329,306,303,255,129,128,99,243,245,243,230,242,242,224,157,222,231,193,180,190,172,172,165,150,143,175,171,184,179,235,189,202,179,180,0,196,171,152,165,189,172,162,137,368,115,143,121,1248,12,147,96,185,0,140,0,1246,978,456,454,12800,12797,29975,0,0,0,0,0,0,0,0,0,0,0,0,0,0,0,0,0,0,0,0,0,0,0,0,0,0,0,0,0,0,0,0,0,0,0,0,0,0,0,0,0,0,0]} 1. d4 {[%emt 0:00:05]} Nf6 {[%emt 0:00:01]} 2. c4 {[%emt 0:00:06]} g6 {[%emt 0:00:06]} 3. Nc3 {[%emt 0:00:06]} Bg7 {[%emt 0:00:06]} 4. e4 {[%emt 0:00:05]} d6 {[%emt 0:00:02]} 5. h3 {[%emt 0:00:11]} O-O {[%emt 0:00:23]} 6. Be3 {[%emt 0:00:06]} Nbd7 {[%emt 0:04:11]} 7. Nge2 {[%emt 0:06:50] E71: King's Indian: 4 e4 d6 5 h3.} e5 {[%emt 0:01:45]} 8. d5 {[%emt 0:00:57]} Nh5 {[%emt 0:08:05] [#]} 9. Qd2 $146 {[%emt 0:05:40] White is better.} (9. g4 $5 {[%cal Rg4h5]} Nf4 10. Nxf4 exf4 11. Bxf4 $11) ({Predecessor:} 9. g3 f5 10. exf5 gxf5 11. g4 fxg4 12. hxg4 Nf4 13. Qc2 h6 14. O-O-O Nc5 15. Nxf4 exf4 {1-0 Storme,I (2397)-Mikhailov,V (2428) Titled Arena Apr 3rd blitz 2021}) 9... a5 {[%emt 0:05:52]} (9... f5 $14 {might be stronger.} 10. Bg5 Ndf6) 10. O-O-O {[%emt 0:07:10]} Nc5 {[%emt 0:00:37]} (10... f5 $14 11. exf5 gxf5) 11. g4 $1 $16 {[%emt 0:07:17]} Nf4 {[%emt 0:01:20]} 12. Nxf4 {[%emt 0:00:05]} exf4 {[%emt 0:00:02]} 13. Bxf4 {[%emt 0:01:56]} a4 {[%emt 0:01:13][%cal Ba5a4,Ba4a3,Ba3b2][%mdl 32] [#]} 14. e5 {[%emt 0:06:18]} a3 {[%emt 0:03:28]} 15. Bd3 $2 {[%emt 0:11:33]} (15. b3 $11) 15... dxe5 {[%emt 0:10:51]} (15... Bxe5 16. Bxe5 axb2+ 17. Qxb2 dxe5 18. Kb1 $17) 16. Be3 {[%emt 0:00:08]} axb2+ {[%emt 0:13:34]} 17. Kb1 {[%emt 0:00:13]} Nxd3 {[%emt 0:01:30]} 18. Qxd3 {[%emt 0:00:03]} Bd7 {[%emt 0:04:35]} 19. Bc5 {[%emt 0:14:12]} Re8 {[%emt 0:01:58]} 20. f3 {[%emt 0:00:15]} b6 {[%emt 0:01:47]} (20... Qh4 $19 21. Bb4 f5 22. gxf5 gxf5) 21. Bb4 $17 {[%emt 0:00:27]} Ra7 {[%emt 0:11:03] Strongly threatening ...Qa8.} 22. Nb5 {[%emt 0:06:22]} (22. a3 $17) 22... Ra4 {[%emt 0:03:23]} (22... Bxb5 $19 23. cxb5 Qf6) 23. Qb3 {[%emt 0:03:26]} Bxb5 {[%emt 0:05:08]} 24. cxb5 {[%emt 0:00:04]} Qa8 {[%emt 0:00:32]} (24... Ra7 $17 25. d6 Qd7) 25. Rhe1 $1 $11 {[%emt 0:02:29]} Bf8 {[%emt 0:02:04]} (25... Qa7 {feels hotter.} 26. Re4 Ra8 27. a3 Bf8) 26. Bxf8 {[%emt 0:00:10]} Rxf8 {[%emt 0:01:03]} 27. Kxb2 {[%emt 0:01:51]} Qa5 {[%emt 0:02:31]} 28. Re4 {[%emt 0:00:32]} Rd4 {[%emt 0:05:59]} 29. Rdxd4 {[%emt 0:05:20]} (29. Rxe5 $2 Rb4 30. Re3 Rxb5 $19) (29. a4 {looks sharper.} Rd2+ 30. Kc1 Rh2 31. Rc4) 29... exd4 {[%emt 0:00:01][%mdl 4096] Endgame KQR-KQR} 30. Kc2 {[%emt 0:00:05]} Qa8 {[%emt 0:05:49]} (30... Ra8 {is interesting.} 31. Kd3 Kf8 32. Rxd4 Qa3) 31. Rxd4 {[%emt 0:07:49]} Qd8 {[%emt 0:00:02]} 32. Qc3 {[%emt 0:03:04]} Qd6 {[%emt 0:01:04]} 33. a4 {[%emt 0:03:58]} Qh2+ {[%emt 0:01:49]} 34. Kb3 {[%emt 0:00:06] Active counter play!} Qh1 {[%emt 0:04:27]} (34... Re8 $16 {is a better defense.}) 35. Ka3 {[%emt 0:05:40]} (35. Qxc7 $2 Qb1+ 36. Ka3 Qa1+ 37. Kb3 Qxd4 $19) ({Better is} 35. d6 $1 $18 {[%cal Rd6c7]} cxd6 36. Rxd6) 35... Ra8 {[%emt 0:00:33]} (35... Rd8 $16 {might work better.}) 36. d6 $18 {[%emt 0:01:07]} (36. Qxc7 $2 {perishes.} Qa1+ 37. Kb3 Qxd4 $19) 36... cxd6 {[%emt 0:00:30]} 37. Rxd6 {[%emt 0:00:18]} Qg1 {[%emt 0:00:55]} 38. Rc6 $2 {[%emt 0:00:22]} (38. h4 $1 $18) 38... Rf8 $2 {[%emt 0:00:40][%mdl 8192]} (38... Qd1 $16) 39. Rc8 {[%emt 0:01:09]} (39. a5 $18) 39... Rxc8 $2 {[%emt 0:00:23]} (39... Qd1 $16 {keeps fighting.} 40. Rxf8+ Kxf8) 40. Qxc8+ $16 {[%emt 0:00:05] KQ-KQ} Kg7 {[%emt 0:00:04]} 41. Qc3+ {[%emt 0:31:47]} Kg8 {[%emt 0:08:55]} 42. h4 {[%emt 0:00:00]} ({White has to play} 42. a5 $18 {a6 is the strong threat.} bxa5 43. Ka4 (43. Qxa5 Qa1+ 44. Kb4 Qe1+ 45. Ka4 Qa1+ 46. Kb4 Qe1+ 47. Ka4 Qa1+ 48. Kb4 $11)) 42... Qd1 {[%emt 0:01:51]} 43. h5 {[%emt 0:00:00]} Qd6+ {[%emt 0:03:32]} (43... gxh5 $16 {was worth a try.} 44. gxh5 Qd6+ 45. Kb2 h6) 44. Kb2 $18 {[%emt 0:00:00]} gxh5 {[%emt 0:03:37]} 45. gxh5 {[%emt 0:00:00]} h6 {[%emt 0:01:52]} 46. Qc8+ $1 {[%emt 0:00:00]} Kg7 {[%emt 0:01:37]} 47. Qg4+ {[%emt 0:00:00]} Kh8 {[%emt 0:01:32]} (47... Kf8 $16 48. Qc8+ Kg7) 48. Kc2 {[%emt 0:00:00]} Qc5+ {[%emt 0:02:42]} 49. Kd2 $1 {[%emt 0:00:00]} Kh7 {[%emt 0:01:42]} 50. Kd3 {[%emt 0:00:00]} Qa3+ {[%emt 0:01:22]} 51. Ke2 {[%emt 0:00:00]} Qb2+ {[%emt 0:00:46]} 52. Kf1 {[%emt 0:00:00]} Qa1+ {[%emt 0:02:39]} 53. Kg2 {[%emt 0:00:00]} Qb2+ {[%emt 0:00:45]} 54. Kh3 $1 {[%emt 0:00:00]} Qa1 {[%emt 0:00:41]} (54... Qc3 $142 55. Qf4 Kg8) 55. Qf4 {[%emt 0:00:00]} Kg7 {[%emt 0:02:08]} 56. Kg4 {[%emt 0:00:00]} Qc3 {[%emt 0:01:19]} 57. Qe4 $2 {[%emt 0:02:33]} (57. Kg3 $18) 57... Qc8+ $2 {[%emt 0:00:25]} (57... Qc5 $1 $11) 58. Kg3 {[%emt 0:00:05] Threatens to win with Qg4+.} Qc3 {[%emt 0:00:51]} 59. Qg4+ {[%emt 0:00:39]} Kf6 {[%emt 0:01:04]} 60. Qf4+ {[%emt 0:01:39]} Kg7 {[%emt 0:00:02]} 61. Qe4 {[%emt 0:00:07]} Qf6 $2 {[%emt 0:01:14]} (61... Qc5 $16) 62. f4 $2 {[%emt 0:01:21]} (62. Qg4+ $18 {and the rest is easy.} Kf8 63. Qf4) 62... Qd8 {[%emt 0:00:23]} 63. Qe3 {[%emt 0:02:34][%cal Oa4a5] Repels Qd2. Hoping for a5!} Kh7 $2 {[%emt 0:00:28][%mdl 8192]} (63... Kf8 $16 64. Qa3+ Kg7) 64. Qc3 $2 {[%emt 0:02:11]} (64. a5 $1 $18 bxa5 65. b6) 64... Qd6 {[%emt 0:00:53]} (64... Qd1 $1 $11) 65. Qc4 {[%emt 0:01:36]} (65. Qb3 $142 $1 {[%cal Rb3f7]} Qe7 66. Kf3) 65... Kg7 {[%emt 0:00:21]} (65... Kg8 $16) 66. Qc3+ {[%emt 0:00:01]} Kh7 $1 {[%emt 0:00:03]} 67. Qe3 $2 {[%emt 0:00:49][%mdl 8192]} (67. Qb3 $16 Qe7 68. Kf3) 67... Qd8 $1 {[%emt 0:00:27] [#]} 68. a5 $1 {[%emt 0:00:23][%mdl 512]} bxa5 {[%emt 0:00:41] [#]} (68... Qg8+ 69. Kf3) 69. b6 $1 {[%emt 0:00:03]} Qd5 {[%emt 0:00:41] Against Qe4+} (69... Qd7 $142 70. Qb3 Qb7 71. Qd3+ Kg7) 70. Qf3 {[%emt 0:01:02]} Qb5 {[%emt 0:00:53] [#]} 71. b7 $2 {[%emt 0:00:06]} (71. Qe4+ $1 {mates} Kg8 72. Qa8+ Kh7 73. b7 Qxh5 74. Qa6 Qd5 75. b8=Q Qd4 76. Qe5) 71... f5 $1 $11 {[%emt 0:00:31] The position is equal.} 72. Kh3 {[%emt 0:00:40]} a4 {[%emt 0:00:27]} 73. Qg2 {[%emt 0:01:05] Threatening mate with Qg6+.} Kh8 $1 {[%emt 0:00:02]} 74. Qf3 {[%emt 0:00:27] Intending Qc3+ and mate.} Kh7 {[%emt 0:00:35]} 75. Qg2 {[%emt 0:00:36] White wants to mate with Qg6+.} Kh8 $1 {[%emt 0:00:02]} 76. Qg6 {[%emt 0:00:33]} Qxb7 {[%emt 0:01:14]} 77. Qxh6+ {[%emt 0:00:03]} Kg8 {[%emt 0:00:19]} 78. Qg6+ {[%emt 0:00:04]} Kh8 {[%emt 0:00:39]} 79. Qf6+ {[%emt 0:01:04]} Kg8 {[%emt 0:00:28]} 80. Qg6+ {[%emt 0:00:24]} Kh8 {[%emt 0:00:11] ( -> ...Qh1+)} 81. Qf6+ {[%emt 0:00:51]} Kg8 {[%emt 0:00:22] ...Qf3+ would be deadly.} 82. Qxf5 {[%emt 0:00:32]} Qb3+ {[%emt 0:01:08]} 83. Kh4 {[%emt 0:00:07]} a3 {[%emt 0:00:26]} 84. Qg6+ {[%emt 0:00:20]} Kh8 {[%emt 0:00:35]} 85. Qf6+ {[%emt 0:00:39]} Kg8 {[%emt 0:00:27]} 86. Qg6+ {[%emt 0:00:42]} Kh8 {[%emt 0:00:09]} 87. Qf6+ {[%emt 0:00:36]} Kh7 {[%emt 0:00:51]} 88. Qe7+ {[%emt 0:00:29]} Kh8 {[%emt 0:00:31]} 89. Qf8+ {[%emt 0:00:35]} Kh7 {[%emt 0:00:11]} 90. Qe7+ {[%emt 0:00:02]} Kh8 {[%emt 0:00:18]} 91. Qe8+ {[%emt 0:00:59]} Kh7 {[%emt 0:00:14]} 92. Qe7+ {[%emt 0:00:34] What a bad dream for Black.   Weighted Error Value: White=0.30/Black=0.41} 1/2-1/2

[Event "Czech Championship U20 Open 2023"]
[Site "Jaromerice nad Rokytnou"]
[Date "2023.03.16"]
[Round "9.6"]
[White "Smolik, Jachym"]
[Black "Svanda, Ondrej"]
[Result "1/2-1/2"]
[ECO "D38"]
[WhiteElo "2297"]
[BlackElo "2366"]
[Annotator "TA"]
[PlyCount "62"]
[EventDate "2023.03.10"]
[EventType "tourn"]
[EventCountry "CZE"]
[SourceTitle "playchess.com"]
[Source "ChessBase"]
[SourceQuality "1"]
[TimeControl "40/5400+30:1800+30"]

{[%evp 14,62,16,14,22,13,22,21,45,45,50,31,38,28,50,41,62,7,7,6,10,10,10,10,10,10,10,9,18,0,4,6,29,20,29,26,23,18,58,18,58,58,83,29,38,29,38,27,29,29,47]} 1. d4 {[%emt 0:00:01] Sumets,Andrey} Nf6 {[%emt 0:00:05]} 2. Nf3 {[%emt 0:00:04]} e6 {[%emt 0:00:03]} 3. c4 {[%emt 0:00:04]} d5 {[%emt 0:00:04]} 4. Nc3 {[%emt 0:00:04]} Bb4 {[%emt 0:00:03]} 5. Bg5 {[%emt 0:00:10]} h6 {[%emt 0:00:08]} 6. Bxf6 {[%emt 0:00:04]} Qxf6 {[%emt 0:00:05]} 7. Qa4+ {[%emt 0:00:16]} Nc6 {[%emt 0:00:02]} 8. e3 {[%emt 0:00:29]} O-O {[%emt 0:00:20] D38: Queen's Gambit Declined: Ragozin Defence (4 Nf3 Bb4).} 9. Be2 {[%emt 0:02:19]} dxc4 {[%emt 0:13:37]} 10. O-O {[%emt 0:01:22]} Bd6 {[%emt 0:02:07] The position is equal.} 11. Qxc4 {[%emt 0:02:09]} e5 {[%emt 0:03:12]} 12. d5 {[%emt 0:01:17] [#]} Nb8 $146 {[%emt 0:09:46][%cal Bc6b8,Bb8a6,Ba6c7][%mdl 32]} ({Predecessor:} 12... Nd8 13. Rac1 Qe7 14. Nb5 Bf5 15. Nxd6 cxd6 16. Nd2 f6 17. Qc7 Rf7 18. Qxe7 Rxe7 {1-0 Gelfand,B (2764)-Moiseenko,A (2699) FIDE World Cup 2013 (3.1)}) 13. Ne4 {[%emt 0:04:43]} Qe7 {[%emt 0:00:12]} 14. Rac1 {[%emt 0:04:37] Nxd6 is the strong threat.} Na6 {[%emt 0:00:34]} 15. Nxd6 {[%emt 0:04:27]} (15. Qb3 $14) 15... cxd6 $11 {[%emt 0:00:28]} 16. Nd2 {[%emt 0:09:25] Black is weak on the light squares} Bd7 {[%emt 0:08:28]} 17. b4 {[%emt 0:13:12][%cal Bb2b4,Bb4b5][%mdl 32]} Rfc8 {[%emt 0:12:03]} 18. Qb3 {[%emt 0:00:10]} Nc7 {[%emt 0:00:01]} 19. b5 {[%emt 0:15:46]} Qd8 {[%emt 0:05:48]} 20. a4 {[%emt 0:05:28]} Ne8 {[%emt 0:00:57]} 21. Qb4 {[%emt 0:04:08]} Rxc1 {[%emt 0:03:18]} 22. Rxc1 {[%emt 0:00:02]} Rc8 {[%emt 0:01:04]} 23. Rxc8 {[%emt 0:04:23]} Qxc8 24. Nc4 {[%emt 0:00:27]} Qc7 {[%emt 0:07:44]} 25. f3 {[%emt 0:04:20]} f6 {[%emt 0:03:36]} 26. Kf2 {[%emt 0:03:00]} Kf8 {[%emt 0:05:36]} 27. Bd3 {[%emt 0:06:11]} Kf7 {[%emt 0:04:59] [#]} 28. Ke2 {[%emt 0:02:24] White is more active.} (28. b6 $1 $16 {[%cal Rb6c7]} axb6 29. Nxb6) 28... b6 {[%emt 0:06:02]} 29. Kd2 {[%emt 0:00:22]} Bc8 {[%emt 0:04:37]} 30. h4 {[%emt 0:07:46]} Bb7 {[%emt 0:00:17]} 31. e4 {[%emt 0:01:11]} Ke7 {[%emt 0:01:41] Weighted Error Value: White=0.10 (very precise) /Black=0.10 (very precise)} 1/2-1/2

[Event "Czech Championship U20 Open 2023"]
[Site "Jaromerice nad Rokytnou"]
[Date "2023.03.17"]
[Round "10.1"]
[White "Hlavina, Matous"]
[Black "Svanda, Ondrej"]
[Result "0-1"]
[ECO "B48"]
[WhiteElo "2091"]
[BlackElo "2366"]
[Annotator "TA"]
[PlyCount "74"]
[EventDate "2023.03.10"]
[EventType "tourn"]
[EventCountry "CZE"]
[SourceTitle "playchess.com"]
[Source "ChessBase"]
[SourceQuality "1"]
[TimeControl "40/5400+30:1800+30"]

{[%evp 11,74,25,51,16,14,9,1,0,0,0,0,-16,4,20,22,22,20,0,12,0,8,4,0,-8,0,7,17,-96,-91,-102,-92,-110,-76,-85,-81,-68,-77,-78,-69,-83,-88,-75,-98,-88,-78,-287,-114,-133,-126,-136,-127,-110,-16,-722,-667,-862,-849,-2930,-654,-29995,-29996,-29996,-29997,-29997,-29998]} 1. e4 {[%emt 0:00:02]} c5 {[%emt 0:00:05]} 2. Nf3 {[%emt 0:00:03]} e6 {[%emt 0:00:08]} 3. d4 {[%emt 0:00:09]} cxd4 {[%emt 0:00:08]} 4. Nxd4 {[%emt 0:00:02]} Nc6 {[%emt 0:00:08]} 5. Nc3 {[%emt 0:00:08]} Qc7 {[%emt 0:00:08]} 6. Be3 {[%emt 0:00:09]} a6 {[%emt 0:00:05]} 7. g4 {[%emt 0:00:05] 7.g4 is the modern continuation. B48: Sicilian: Taimanov: 5 Nc3 Qc7 6 Be3 a6 without Be2.} b5 {[%emt 0:17:24]} 8. Nxc6 {[%emt 0:00:13]} Qxc6 {[%emt 0:03:25]} 9. Qd2 {[%emt 0:00:08] The position is equal.} Bb7 {[%emt 0:11:31]} 10. Bg2 {[%emt 0:05:09]} Nf6 {[%emt 0:07:54][%cal Bg8f6,Bf6d7,Bd7e5][%mdl 32]} 11. f3 {[%emt 0:06:23]} d6 {[%emt 0:00:04]} 12. O-O-O {[%emt 0:00:44] [#]} Rc8 $146 {[%emt 0:04:16]} ({Predecessor:} 12... Be7 13. g5 Nd7 14. f4 Nb6 15. Qd4 Nc4 16. h4 b4 17. Ne2 Rc8 18. c3 O-O 19. Kb1 d5 20. e5 Qb5 21. Bc1 bxc3 22. b3 Na3+ 23. Bxa3 c2+ {0-1 Marinakis,H (2118)-Alexakis,D (2486) GRE-ch 71st Athens 2022 (8)}) 13. Kb1 {[%emt 0:01:52]} Be7 {[%emt 0:02:41]} 14. h4 {[%emt 0:01:06]} Nd7 {[%emt 0:02:05]} 15. Ne2 {[%emt 0:21:47]} Ne5 {[%emt 0:08:23]} 16. Nd4 {[%emt 0:01:05]} Qc7 {[%emt 0:00:01]} 17. Bg5 {[%emt 0:05:26]} Nc4 {[%emt 0:03:22]} 18. Qc1 {[%emt 0:00:11]} d5 {[%emt 0:03:20]} 19. Bf1 {[%emt 0:11:32]} (19. exd5 $11 {remains equal.} Bxg5 20. Qxg5) 19... dxe4 $17 {[%emt 0:08:37]} 20. Bxc4 {[%emt 0:01:01]} bxc4 {[%emt 0:00:01][%cal Bb5c4,Bc4c3][%mdl 32]} (20... Qxc4 $2 21. Bxe7 Kxe7 22. Qg5+ Ke8 23. Qxg7 $18) 21. fxe4 {[%emt 0:01:15]} c3 {[%emt 0:03:14] White must now prevent ...cxb2.} (21... Bxe4 $2 22. Rhe1 $18) 22. b3 {[%emt 0:00:30]} Bc5 {[%emt 0:01:32]} (22... Bxe4 $2 23. Rhe1 $18) 23. Rhe1 {[%emt 0:04:04][%cal Od4f5]} O-O $1 {[%emt 0:06:22]} 24. h5 {[%emt 0:02:15]} Qb6 {[%emt 0:00:01]} 25. Nf3 {[%emt 0:02:12]} f6 {[%emt 0:00:01]} 26. Be3 {[%emt 0:01:08]} Rfd8 {[%emt 0:01:08] Hoping for ...Rxd1.} (26... Bxe4 $2 27. Bxc5 Bxc2+ 28. Qxc2 $18) (26... Rcd8 {simplifies} 27. Rxd8 Rxd8 28. Bxc5 Qxc5 29. h6 gxh6 30. a4 Rd6) 27. Bxc5 {[%emt 0:09:20]} Qxc5 {[%emt 0:00:01]} 28. g5 $2 {[%emt 0:01:22]} (28. h6 $17) 28... f5 $2 {[%emt 0:04:43]} (28... Rxd1 $19 {is more deadly.} 29. Qxd1 fxg5) 29. g6 {[%emt 0:05:55] [#] And now gxh7+ would win.} h6 {[%emt 0:04:38]} ({Reject} 29... Bxe4 $6 30. gxh7+ Kh8 31. Ng5 $14) 30. Rxd8+ {[%emt 0:01:56]} Rxd8 {[%emt 0:00:00]} 31. Rd1 {[%emt 0:00:11]} Rd6 {[%emt 0:01:48] Black is more active.} ({Much less strong is} 31... Rxd1 32. Qxd1 Qf8 33. Qd7 fxe4 34. Ne1 $16 (34. Qxe6+ Kh8 $11)) ({Better is} 31... Re8 $17 32. Qf4 Bxe4) 32. a4 $2 {[%emt 0:05:57][%mdl 8192]} (32. Rxd6 $11 Qxd6 33. Qe1) 32... Bxe4 $19 {[%emt 0:00:50]} 33. Ng1 {[%emt 0:01:14]} Qb4 {[%emt 0:03:11]} 34. Ka2 {[%emt 0:00:25]} Bd5 {[%emt 0:00:39]} (34... Rd2 $142 35. Rxd2 cxd2) 35. Kb1 {[%emt 0:04:44] [#]} Bxb3 $1 {[%emt 0:00:45][%mdl 512] Black mates.} 36. Rxd6 {[%emt 0:00:30]} (36. Rd3 Bc4+) 36... Bc4+ {[%emt 0:00:02]} 37. Ka1 {[%emt 0:00:07]} Qxa4+ {[%emt 0:00:01] Weighted Error Value: White=0.76/Black=0.31} 0-1

[Event "Czech Championship U20 Open 2023"]
[Site "Jaromerice nad Rokytnou"]
[Date "2023.03.17"]
[Round "10.2"]
[White "Jares, Michal"]
[Black "Smolik, Jachym"]
[Result "1-0"]
[ECO "A06"]
[WhiteElo "2177"]
[BlackElo "2297"]
[Annotator "TA"]
[PlyCount "82"]
[EventDate "2023.03.10"]
[EventType "tourn"]
[EventCountry "CZE"]
[SourceTitle "playchess.com"]
[Source "ChessBase"]
[SourceQuality "1"]
[TimeControl "40/5400+30:1800+30"]

{[%evp 9,82,17,23,26,47,26,32,9,32,36,43,27,79,111,107,99,93,83,119,110,149,80,133,69,95,85,95,76,164,0,394,398,391,368,666,631,596,137,254,137,156,77,85,99,353,284,2497,2231,2396,2183,2004,2560,2537,2363,2601,1956,2696,2151,2967,2851,3968,3989,29980,29981,4778,1014,29993,1223,29993,29994,29994,29995,29995,29996,29996]} 1. Nf3 {[%emt 0:00:05]} d5 {[%emt 0:00:01]} 2. g3 {[%emt 0:00:13]} Nc6 {[%emt 0:00:06]} 3. d4 {[%emt 0:00:06]} Bg4 {[%emt 0:00:06]} 4. Bg2 {[%emt 0:00:07]} Qd7 {[%emt 0:00:08]} 5. h3 {[%emt 0:00:20]} Bh5 {[%emt 0:01:22]} 6. O-O {[%emt 0:01:54] D02: 1 d4 d5 2 Nf3 sidelines, including 2...Nf6 3 g3 and 2...Nf6 3 Bf4.} e6 {[%emt 0:02:57] [#]} 7. c4 $1 {[%emt 0:00:40]} O-O-O {[%emt 0:07:52]} 8. Nc3 {[%emt 0:10:27] White is slightly better.} f6 {[%emt 0:02:48] [#]} 9. Qa4 $146 {[%emt 0:03:39]} ({Predecessor:} 9. cxd5 exd5 10. Qa4 Kb8 11. Ne1 Nge7 12. Nd3 Nc8 13. e3 Nb6 14. Qb3 Na5 15. Qc2 {½-½ Iljushin,A (2521)-Shukh,N (2425) Volga Region-ch 12th 2014 (7)}) 9... Kb8 {[%emt 0:02:58]} 10. Rd1 {[%emt 0:13:12]} g5 {[%emt 0:17:23]} (10... Be8 $11) 11. c5 $16 {[%emt 0:08:30]} Nce7 {[%emt 0:08:07]} 12. Qa3 {[%emt 0:01:17]} (12. Nb5 a6 13. Nc3 Qxa4 14. Nxa4 Nc6 $15) 12... g4 {[%emt 0:02:54]} 13. hxg4 {[%emt 0:02:32]} Bxg4 {[%emt 0:00:01]} 14. b4 $1 {[%emt 0:02:27]} h5 {[%emt 0:02:28]} 15. b5 {[%emt 0:10:40]} ({White should play} 15. Nh4 $1) 15... Nc8 {[%emt 0:03:59]} (15... Ng6 $142) 16. Bf4 {[%emt 0:07:17]} (16. Nh4 $1 $16) 16... Bxf3 {[%emt 0:03:59]} 17. Bxf3 {[%emt 0:01:59][%cal Ob5b6]} Bh6 {[%emt 0:00:50]} 18. c6 $1 {[%emt 0:09:47] White is much more active.} (18. Bxh5 $2 Bxf4 19. Bf3 Qg7 $19) 18... Qg7 {[%emt 0:07:32] [#]} (18... Qe7 $16 19. Qxe7 Ngxe7) 19. Bxh6 $2 {[%emt 0:11:24]} (19. cxb7 $1 $18 Bxf4 20. bxc8=N Rxc8 21. Qa6) 19... Rxh6 $4 {[%emt 0:00:31][%mdl 8192]} (19... Nxh6 $11 {and Black has nothing to worry.} 20. cxb7 (20. Bxh5 $2 Nf5 $19) 20... Nd6) 20. Na4 $18 {[%emt 0:04:34]} (20. cxb7 Nd6 $18) 20... h4 {[%emt 0:00:58]} 21. cxb7 {[%emt 0:03:38]} Nd6 {[%emt 0:06:09]} (21... Nb6) 22. Nc5 {[%emt 0:02:57] aiming for Rac1.} hxg3 {[%emt 0:00:22]} 23. Na6+ {[%emt 0:01:49]} (23. Nxe6 $2 gxf2+ 24. Kxf2 Rh2+ 25. Ke3 Nc4+ 26. Kd3 Qg6+ 27. Kc3 Nxa3 $19) (23. Rac1 $142 {Na6+ is the strong threat.} Rh7 24. Na6+ {[%mdl 64] Discovered Attack, Double Attack} (24. Nxe6 Qh6 $11) 24... Kxb7 25. Qc3 (25. Nxc7 gxf2+ 26. Kxf2 Rh2+ 27. Ke3 Qh6+ 28. Kd3 Qh7+ 29. Ke3 Qh6+ 30. Kd3 Qh7+ 31. Ke3 Qh6+ $11)) 23... Kxb7 {[%emt 0:00:01] [#] Threatens to win with ...gxf2+.} 24. Qc5 $40 {[%emt 0:01:24][%mdl 128] White is out for blood.} (24. Qc3 $1 $18 {[%cal Rc3c6]} gxf2+ 25. Kxf2 Rh2+ 26. Ke3 Nf5+ 27. Kd3) 24... gxf2+ {[%emt 0:04:56]} 25. Kxf2 {[%emt 0:00:01]} Rh2+ {[%emt 0:07:45]} 26. Kf1 {[%emt 0:00:40][%mdl 1024] White has strong compensation. The board is on fire.} Kc8 $4 {[%emt 0:06:55][%mdl 8192] This costs Black the game.} (26... Qd7 $16) 27. Qc6 {[%emt 0:01:14] Threatening mate with Rac1.} Nb7 $2 {[%emt 0:00:43]} (27... Re8 28. Rac1 Kd8) 28. Rac1 {[%emt 0:00:45][%cal Rc6c7]} Rd7 {[%emt 0:01:12]} 29. Nc5 {[%emt 0:00:37]} Qh7 {[%emt 0:01:17]} 30. Qxb7+ {[%emt 0:00:34]} Kd8 {[%emt 0:00:01]} 31. Nxd7 {[%emt 0:00:35]} Qh3+ {[%emt 0:04:25]} 32. Ke1 {[%emt 0:00:01][%cal Bf1e1,Be1d2,Bd2d3][%mdl 32]} Qh4+ {[%emt 0:01:27]} 33. Kd2 {[%emt 0:00:03]} Qf4+ {[%emt 0:00:07]} 34. Kd3 {[%emt 0:00:51][%cal Od7e5]} Rh4 {[%emt 0:01:51] [#]} 35. Qxa7 $1 {[%emt 0:01:04] Nf8 would kill now.} Kxd7 {[%emt 0:00:06]} (35... Rh5 36. Qb8+) 36. Rg1 {[%emt 0:00:25]} Ne7 {[%emt 0:00:28]} 37. Qc5 {[%emt 0:00:34] White wants to mate with Rg7.} e5 {[%emt 0:00:59]} 38. dxe5 {[%emt 0:00:34]} (38. Qxc7+ $142 Ke8 39. Qb8+ Kd7 40. Rc7+ Ke6 41. Rxe7+ Kxe7 42. Qc7+ (42. Bxd5 $2 {perishes.} e4+ {[%mdl 64] Discovered Attack} 43. Kc4 Qxb8 $19) 42... Ke6 43. Bxd5+ {[%mdl 64] Decoy} Kxd5 44. Qd7#) 38... fxe5 {[%emt 0:00:33]} 39. Qxc7+ {[%emt 0:00:19] White mates.} Ke8 {[%emt 0:00:02]} 40. Qb8+ {[%emt 0:00:37]} Kf7 {[%emt 0:00:08] [#]} 41. Bxd5+ $1 {[%emt 0:01:49]} Nxd5 {[%emt 0:02:22] An interesting game.   Weighted Error Value: White=0.63/Black=1.18} 1-0